[Event "Titled Tuesday Blitz June 27 Late 2023"]
[White "Sanchez, Robert"]
[Black "Chor, Kevin"]
[WhiteFideId "2034360"]
[BlackFideId "2090740"]
[WhiteElo "2121"]
[BlackElo "2530"]
[Result "0-1"]
[Round "5"]
[TimeControl "180+2"]
[Date "2023.06.27"]
[WhiteClock "0:00:00"]
[BlackClock "0:00:17"]
[Board "114"]

1. e4 {[%clk 0:01:39]}  c5 {[%clk 0:02:56]} 2. Nf3 {[%clk 0:01:38]}  Nc6 {[%clk 0:02:55]} 3. d4 {[%clk 0:01:38]}  cxd4 {[%clk 0:02:56]} 4. Nxd4 {[%clk 0:01:38]}  g6 {[%clk 0:02:57]} 5. Nc3 {[%clk 0:01:38]}  Bg7 {[%clk 0:02:57]} 6. Be3 {[%clk 0:01:38]}  Nf6 {[%clk 0:02:57]} 7. Bc4 {[%clk 0:01:38]}  O-O {[%clk 0:02:58]} 8. Bb3 {[%clk 0:01:39]}  d6 {[%clk 0:02:57]} 9. f3 {[%clk 0:01:39]}  Bd7 {[%clk 0:02:58]} 10. Qd2 {[%clk 0:01:39]}  Rc8 {[%clk 0:02:58]} 11. O-O-O {[%clk 0:01:39]}  Nxd4 {[%clk 0:02:59]} 12. Bxd4 {[%clk 0:01:40]}  b5 {[%clk 0:02:59]} 13. h4 {[%clk 0:01:40]}  a5 {[%clk 0:02:58]} 14. h5 {[%clk 0:01:36]}  a4 {[%clk 0:02:41]} 15. Bxf6 {[%clk 0:01:35]}  exf6 {[%clk 0:02:28]} 16. Bd5 {[%clk 0:01:32]}  b4 {[%clk 0:02:12]} 17. Ne2 {[%clk 0:01:31]}  b3 {[%clk 0:01:54]} 18. Nc3 {[%clk 0:01:20]}  f5 {[%clk 0:01:45]} 19. hxg6 {[%clk 0:01:09]}  hxg6 {[%clk 0:01:44]} 20. cxb3 {[%clk 0:00:49]}  Qa5 {[%clk 0:01:26]} 21. Kb1 {[%clk 0:00:42]}  a3 {[%clk 0:01:20]} 22. Bc4 {[%clk 0:00:29]}  axb2 {[%clk 0:01:07]} 23. Nd5 {[%clk 0:00:26]}  Qd8 {[%clk 0:00:55]} 24. g3 {[%clk 0:00:21]}  Be6 {[%clk 0:00:50]} 25. Qh2 {[%clk 0:00:21]}  Re8 {[%clk 0:00:45]} 26. Qh7+ {[%clk 0:00:20]}  Kf8 {[%clk 0:00:46]} 27. Rhe1 {[%clk 0:00:12]}  Qg5 {[%clk 0:00:40]} 28. Nb6 {[%clk 0:00:06]}  Rcd8 {[%clk 0:00:30]} 29. Bxe6 {[%clk 0:00:05]}  fxe6 {[%clk 0:00:22]} 30. Nc4 {[%clk 0:00:05]}  d5 {[%clk 0:00:18]} 31. exd5 {[%clk 0:00:05]}  exd5 {[%clk 0:00:19]} 32. Nxb2 {[%clk 0:00:02]}  Rxe1 {[%clk 0:00:16]} 33. Rxe1 {[%clk 0:00:00]}  Qd2 {[%clk 0:00:17]} 0-1


[Site "https://www.chess.com"]

[Event "Titled Tuesday Blitz June 27 Late 2023"]
[White "Kielinkei"]
[Black "Schuster, Karsten"]
[BlackFideId "4611071"]
[WhiteElo "2463"]
[BlackElo "2356"]
[Result "0-1"]
[Round "5"]
[TimeControl "180+2"]
[Date "2023.06.27"]
[WhiteClock "0:00:00"]
[BlackClock "0:00:06"]
[Board "119"]

1. b3 {[%clk 0:03:00]}  d5 {[%clk 0:02:58]} 2. Bb2 {[%clk 0:03:01]}  Nf6 {[%clk 0:02:58]} 3. Nf3 {[%clk 0:03:00]}  Bg4 {[%clk 0:02:58]} 4. Ne5 {[%clk 0:02:59]}  Bh5 {[%clk 0:02:57]} 5. d4 {[%clk 0:02:52]}  Nbd7 {[%clk 0:02:56]} 6. Nd2 {[%clk 0:02:51]}  c6 {[%clk 0:02:55]} 7. Ndf3 {[%clk 0:02:50]}  e6 {[%clk 0:02:54]} 8. e3 {[%clk 0:02:46]}  Bb4+ {[%clk 0:02:54]} 9. c3 {[%clk 0:02:44]}  Bd6 {[%clk 0:02:54]} 10. Nxd7 {[%clk 0:02:44]}  Qxd7 {[%clk 0:02:52]} 11. Be2 {[%clk 0:02:44]}  Qc7 {[%clk 0:02:51]} 12. h3 {[%clk 0:02:43]}  O-O {[%clk 0:02:50]} 13. O-O {[%clk 0:02:42]}  a5 {[%clk 0:02:50]} 14. c4 {[%clk 0:02:38]}  a4 {[%clk 0:02:50]} 15. Rc1 {[%clk 0:02:30]}  axb3 {[%clk 0:02:48]} 16. axb3 {[%clk 0:02:31]}  Ra2 {[%clk 0:02:35]} 17. Bc3 {[%clk 0:02:28]}  Rfa8 {[%clk 0:02:33]} 18. Rc2 {[%clk 0:02:17]}  Ne4 {[%clk 0:02:20]} 19. Bb2 {[%clk 0:01:56]}  h6 {[%clk 0:02:03]} 20. c5 {[%clk 0:01:51]}  Be7 {[%clk 0:02:01]} 21. Ne5 {[%clk 0:01:50]}  Bxe2 {[%clk 0:02:00]} 22. Qxe2 {[%clk 0:01:51]}  Bf6 {[%clk 0:01:46]} 23. Nd3 {[%clk 0:01:46]}  b5 {[%clk 0:01:36]} 24. cxb6 {[%clk 0:01:21]}  Qxb6 {[%clk 0:01:35]} 25. b4 {[%clk 0:01:16]}  Qb5 {[%clk 0:01:31]} 26. Rfc1 {[%clk 0:00:59]}  R8a6 {[%clk 0:01:20]} 27. Nc5 {[%clk 0:00:52]}  Qxe2 {[%clk 0:01:12]} 28. Rxe2 {[%clk 0:00:52]}  Nxc5 {[%clk 0:01:12]} 29. bxc5 {[%clk 0:00:38]}  R6a4 {[%clk 0:00:57]} 30. Rcc2 {[%clk 0:00:37]}  Bd8 {[%clk 0:00:52]} 31. Bc3 {[%clk 0:00:34]}  R2a3 {[%clk 0:00:49]} 32. Be1 {[%clk 0:00:22]}  Bc7 {[%clk 0:00:43]} 33. g4 {[%clk 0:00:18]}  Kh7 {[%clk 0:00:38]} 34. f4 {[%clk 0:00:16]}  Kg6 {[%clk 0:00:36]} 35. Bf2 {[%clk 0:00:16]}  f5 {[%clk 0:00:30]} 36. Kg2 {[%clk 0:00:15]}  fxg4 {[%clk 0:00:28]} 37. hxg4 {[%clk 0:00:16]}  h5 {[%clk 0:00:29]} 38. gxh5+ {[%clk 0:00:15]}  Kxh5 {[%clk 0:00:29]} 39. Kf3 {[%clk 0:00:16]}  g5 {[%clk 0:00:28]} 40. fxg5 {[%clk 0:00:16]}  Kxg5 {[%clk 0:00:27]} 41. Rc1 {[%clk 0:00:16]}  Kf5 {[%clk 0:00:26]} 42. Rh1 {[%clk 0:00:15]}  e5 {[%clk 0:00:21]} 43. dxe5 {[%clk 0:00:10]}  Bxe5 {[%clk 0:00:18]} 44. Rh5+ {[%clk 0:00:10]}  Ke6 {[%clk 0:00:17]} 45. Bg3 {[%clk 0:00:10]}  Bxg3 {[%clk 0:00:15]} 46. Kxg3 {[%clk 0:00:10]}  Re4 {[%clk 0:00:13]} 47. Kf3 {[%clk 0:00:10]}  Re5 {[%clk 0:00:13]} 48. Rh6+ {[%clk 0:00:09]}  Kd7 {[%clk 0:00:13]} 49. Rd6+ {[%clk 0:00:09]}  Kc7 {[%clk 0:00:13]} 50. Rf6 {[%clk 0:00:10]}  Rc3 {[%clk 0:00:12]} 51. Rf7+ {[%clk 0:00:09]}  Kc8 {[%clk 0:00:11]} 52. Rg2 {[%clk 0:00:05]}  Rexe3+ {[%clk 0:00:07]} 53. Kf2 {[%clk 0:00:05]}  Rc2+ {[%clk 0:00:06]} 54. Kxe3 {[%clk 0:00:05]}  Rxg2 {[%clk 0:00:06]} 55. Kd4 {[%clk 0:00:05]}  Rc2 {[%clk 0:00:05]} 56. Ke5 {[%clk 0:00:04]}  Rxc5 {[%clk 0:00:06]} 57. Kd6 {[%clk 0:00:05]}  Rc4 {[%clk 0:00:06]} 58. Ra7 {[%clk 0:00:02]}  Kb8 {[%clk 0:00:06]} 59. Rh7 {[%clk 0:00:00]}  d4 {[%clk 0:00:06]} 0-1


[Site "https://www.chess.com"]

[Event "Titled Tuesday Blitz June 27 Late 2023"]
[White "Remolar Gallen, Jose"]
[Black "Andersson, Bjorn 1971"]
[WhiteFideId "2215187"]
[BlackFideId "1702114"]
[WhiteElo "2451"]
[BlackElo "2339"]
[Result "1-0"]
[Round "5"]
[TimeControl "180+2"]
[Date "2023.06.27"]
[WhiteClock "0:00:23"]
[BlackClock "0:00:21"]
[Board "120"]

1. e4 {[%clk 0:02:57]}  c5 {[%clk 0:02:58]} 2. Nf3 {[%clk 0:02:58]}  Nc6 {[%clk 0:02:58]} 3. d4 {[%clk 0:02:56]}  cxd4 {[%clk 0:02:59]} 4. Nxd4 {[%clk 0:02:57]}  Nf6 {[%clk 0:02:59]} 5. Nc3 {[%clk 0:02:56]}  e5 {[%clk 0:02:59]} 6. Ndb5 {[%clk 0:02:56]}  d6 {[%clk 0:02:58]} 7. a4 {[%clk 0:02:56]}  a6 {[%clk 0:02:59]} 8. Na3 {[%clk 0:02:55]}  Be7 {[%clk 0:02:58]} 9. Bd3 {[%clk 0:02:54]}  O-O {[%clk 0:02:57]} 10. O-O {[%clk 0:02:54]}  Kh8 {[%clk 0:02:56]} 11. Nc4 {[%clk 0:02:41]}  d5 {[%clk 0:02:46]} 12. exd5 {[%clk 0:02:34]}  Nxd5 {[%clk 0:02:46]} 13. Nxd5 {[%clk 0:02:33]}  Qxd5 {[%clk 0:02:45]} 14. Nb6 {[%clk 0:02:31]}  Qd8 {[%clk 0:02:39]} 15. Nxa8 {[%clk 0:02:30]}  Be6 {[%clk 0:02:39]} 16. f4 {[%clk 0:02:06]}  Qxa8 {[%clk 0:02:26]} 17. f5 {[%clk 0:02:04]}  Bc8 {[%clk 0:02:19]} 18. f6 {[%clk 0:01:47]}  Bc5+ {[%clk 0:02:17]} 19. Kh1 {[%clk 0:01:46]}  g6 {[%clk 0:02:17]} 20. Bh6 {[%clk 0:01:39]}  Rd8 {[%clk 0:02:15]} 21. Qe1 {[%clk 0:01:19]}  Be6 {[%clk 0:01:59]} 22. Be4 {[%clk 0:00:52]}  Nd4 {[%clk 0:01:42]} 23. Qh4 {[%clk 0:00:38]}  Kg8 {[%clk 0:01:37]} 24. Bg7 {[%clk 0:00:32]}  Rd7 {[%clk 0:01:24]} 25. Rae1 {[%clk 0:00:32]}  Qd8 {[%clk 0:01:05]} 26. Bd3 {[%clk 0:00:31]}  Nc6 {[%clk 0:00:52]} 27. Re4 {[%clk 0:00:28]}  Nd4 {[%clk 0:00:21]} 28. Qxh7+ {[%clk 0:00:23]} 1-0


[Site "https://www.chess.com"]

[Event "Titled Tuesday Blitz June 27 Late 2023"]
[White "Bazzano, Sebastian"]
[Black "Weishaeutel, Moritz"]
[WhiteFideId "104566"]
[BlackFideId "12967300"]
[WhiteElo "2223"]
[BlackElo "2628"]
[Result "0-1"]
[Round "5"]
[TimeControl "180+2"]
[Date "2023.06.27"]
[WhiteClock "0:00:04"]
[BlackClock "0:01:47"]
[Board "122"]

1. d4 {[%clk 0:02:55]}  Nf6 {[%clk 0:02:59]} 2. Bf4 {[%clk 0:02:53]}  d5 {[%clk 0:02:59]} 3. e3 {[%clk 0:02:52]}  c5 {[%clk 0:02:59]} 4. c3 {[%clk 0:02:51]}  Nc6 {[%clk 0:03:00]} 5. Nd2 {[%clk 0:02:51]}  e6 {[%clk 0:02:55]} 6. Ngf3 {[%clk 0:02:51]}  cxd4 {[%clk 0:02:55]} 7. exd4 {[%clk 0:02:50]}  Nh5 {[%clk 0:02:56]} 8. Bg5 {[%clk 0:02:49]}  f6 {[%clk 0:02:54]} 9. Be3 {[%clk 0:02:39]}  Bd6 {[%clk 0:02:54]} 10. Bd3 {[%clk 0:02:30]}  Nf4 {[%clk 0:02:51]} 11. Bxf4 {[%clk 0:02:29]}  Bxf4 {[%clk 0:02:51]} 12. O-O {[%clk 0:02:29]}  O-O {[%clk 0:02:49]} 13. Re1 {[%clk 0:02:27]}  e5 {[%clk 0:02:46]} 14. dxe5 {[%clk 0:01:53]}  fxe5 {[%clk 0:02:46]} 15. Bb5 {[%clk 0:01:53]}  Qb6 {[%clk 0:02:41]} 16. Bxc6 {[%clk 0:01:50]}  bxc6 {[%clk 0:02:42]} 17. Qb3 {[%clk 0:01:20]}  e4 {[%clk 0:02:29]} 18. Nxe4 {[%clk 0:00:37]}  Qxb3 {[%clk 0:02:29]} 19. axb3 {[%clk 0:00:33]}  dxe4 {[%clk 0:02:30]} 20. Rxe4 {[%clk 0:00:34]}  Bc7 {[%clk 0:02:24]} 21. Nd4 {[%clk 0:00:28]}  Bb6 {[%clk 0:02:22]} 22. b4 {[%clk 0:00:17]}  c5 {[%clk 0:02:14]} 23. bxc5 {[%clk 0:00:16]}  Bxc5 {[%clk 0:02:15]} 24. b4 {[%clk 0:00:17]}  Bb6 {[%clk 0:02:10]} 25. Ra2 {[%clk 0:00:15]}  Bb7 {[%clk 0:02:09]} 26. Rg4 {[%clk 0:00:13]}  Rae8 {[%clk 0:02:05]} 27. h4 {[%clk 0:00:12]}  Re1+ {[%clk 0:01:58]} 28. Kh2 {[%clk 0:00:11]}  Rc1 {[%clk 0:01:54]} 29. Ra3 {[%clk 0:00:05]}  Bc7+ {[%clk 0:01:48]} 30. Kh3 {[%clk 0:00:04]}  Rh1# {[%clk 0:01:47]} 0-1


[Site "https://www.chess.com"]

[Event "Titled Tuesday Blitz June 27 Late 2023"]
[White "Castella Garcia, Fausto"]
[Black "Zeynalli, Rashad"]
[WhiteFideId "3501922"]
[BlackFideId "13403320"]
[WhiteElo "2350"]
[BlackElo "2599"]
[Result "1-0"]
[Round "5"]
[TimeControl "180+2"]
[Date "2023.06.27"]
[WhiteClock "0:00:28"]
[BlackClock "0:00:57"]
[Board "124"]

1. e4 {[%clk 0:03:00]}  c6 {[%clk 0:02:55]} 2. Nc3 {[%clk 0:02:59]}  d5 {[%clk 0:02:54]} 3. Nf3 {[%clk 0:03:00]}  Bg4 {[%clk 0:02:51]} 4. h3 {[%clk 0:02:59]}  Bxf3 {[%clk 0:02:50]} 5. Qxf3 {[%clk 0:02:58]}  e6 {[%clk 0:02:50]} 6. d4 {[%clk 0:02:58]}  dxe4 {[%clk 0:02:48]} 7. Nxe4 {[%clk 0:02:56]}  Be7 {[%clk 0:02:48]} 8. Bd3 {[%clk 0:02:56]}  Nf6 {[%clk 0:02:48]} 9. O-O {[%clk 0:02:55]}  Qxd4 {[%clk 0:02:45]} 10. Be3 {[%clk 0:02:45]}  Qe5 {[%clk 0:02:42]} 11. Bf4 {[%clk 0:02:40]}  Qd5 {[%clk 0:02:36]} 12. Rad1 {[%clk 0:02:35]}  Nbd7 {[%clk 0:02:36]} 13. c4 {[%clk 0:02:20]}  Qa5 {[%clk 0:02:23]} 14. Nd6+ {[%clk 0:02:17]}  Bxd6 {[%clk 0:02:23]} 15. Bxd6 {[%clk 0:02:17]}  O-O-O {[%clk 0:02:19]} 16. b4 {[%clk 0:02:11]}  Qh5 {[%clk 0:02:18]} 17. Qe3 {[%clk 0:02:03]}  Nb6 {[%clk 0:02:15]} 18. Be2 {[%clk 0:01:47]}  Qf5 {[%clk 0:02:10]} 19. a4 {[%clk 0:01:34]}  Qe4 {[%clk 0:02:00]} 20. a5 {[%clk 0:01:19]}  Qxe3 {[%clk 0:01:59]} 21. fxe3 {[%clk 0:01:20]}  Na4 {[%clk 0:01:59]} 22. Be5 {[%clk 0:01:15]}  Ne4 {[%clk 0:01:49]} 23. Rxd8+ {[%clk 0:01:12]}  Rxd8 {[%clk 0:01:48]} 24. Rxf7 {[%clk 0:01:13]}  Rd7 {[%clk 0:01:37]} 25. Rf4 {[%clk 0:01:09]}  Nac3 {[%clk 0:01:36]} 26. Bf3 {[%clk 0:01:03]}  g5 {[%clk 0:01:35]} 27. Rxe4 {[%clk 0:00:59]}  Nxe4 {[%clk 0:01:35]} 28. Bxe4 {[%clk 0:01:00]}  Rd1+ {[%clk 0:01:34]} 29. Kh2 {[%clk 0:01:00]}  Rc1 {[%clk 0:01:26]} 30. Bxh7 {[%clk 0:00:57]}  Rxc4 {[%clk 0:01:26]} 31. g3 {[%clk 0:00:49]}  Rxb4 {[%clk 0:01:24]} 32. e4 {[%clk 0:00:47]}  c5 {[%clk 0:01:21]} 33. h4 {[%clk 0:00:47]}  gxh4 {[%clk 0:01:19]} 34. gxh4 {[%clk 0:00:47]}  c4 {[%clk 0:01:19]} 35. h5 {[%clk 0:00:48]}  Rb5 {[%clk 0:01:19]} 36. h6 {[%clk 0:00:32]}  Rxe5 {[%clk 0:01:09]} 37. Bg6 {[%clk 0:00:32]}  c3 {[%clk 0:00:57]} 38. h7 {[%clk 0:00:32]}  Rc5 {[%clk 0:00:57]} 39. h8=Q+ {[%clk 0:00:32]}  Kc7 {[%clk 0:00:58]} 40. Qg7+ {[%clk 0:00:30]}  Kd6 {[%clk 0:00:57]} 41. Qd4+ {[%clk 0:00:28]}  Kc6 {[%clk 0:00:57]} 42. Be8+ {[%clk 0:00:29]}  Kc7 {[%clk 0:00:57]} 43. Qxc5+ {[%clk 0:00:28]} 1-0


[Site "https://www.chess.com"]

[Event "Titled Tuesday Blitz June 27 Late 2023"]
[White "Palencia Morales, Wilson Guillermo"]
[Black "Wendt, Jan-Dietrich"]
[WhiteFideId "4401859"]
[BlackFideId "4623797"]
[WhiteElo "2552"]
[BlackElo "2358"]
[Result "1-0"]
[Round "5"]
[TimeControl "180+2"]
[Date "2023.06.27"]
[WhiteClock "0:00:55"]
[BlackClock "0:00:00"]
[Board "125"]

1. d4 {[%clk 0:03:00]}  Nf6 {[%clk 0:02:59]} 2. c4 {[%clk 0:03:00]}  g6 {[%clk 0:02:58]} 3. Nf3 {[%clk 0:03:00]}  Bg7 {[%clk 0:02:58]} 4. Nc3 {[%clk 0:03:01]}  O-O {[%clk 0:02:58]} 5. e4 {[%clk 0:03:00]}  d6 {[%clk 0:02:58]} 6. Be2 {[%clk 0:03:00]}  c5 {[%clk 0:02:58]} 7. d5 {[%clk 0:03:00]}  e6 {[%clk 0:02:58]} 8. h3 {[%clk 0:02:59]}  Re8 {[%clk 0:02:56]} 9. O-O {[%clk 0:02:58]}  Na6 {[%clk 0:02:56]} 10. Bf4 {[%clk 0:02:55]}  e5 {[%clk 0:02:56]} 11. Bg5 {[%clk 0:02:53]}  h6 {[%clk 0:02:55]} 12. Be3 {[%clk 0:02:53]}  Nh5 {[%clk 0:02:32]} 13. Qd2 {[%clk 0:02:49]}  Kh7 {[%clk 0:02:30]} 14. Kh2 {[%clk 0:02:22]}  Nc7 {[%clk 0:02:19]} 15. Ng1 {[%clk 0:02:11]}  Nf6 {[%clk 0:02:12]} 16. a4 {[%clk 0:02:10]}  Na6 {[%clk 0:02:09]} 17. Bd3 {[%clk 0:02:05]}  Nb4 {[%clk 0:02:08]} 18. Rae1 {[%clk 0:02:04]}  Nxd3 {[%clk 0:02:07]} 19. Qxd3 {[%clk 0:02:04]}  b6 {[%clk 0:01:58]} 20. Kh1 {[%clk 0:02:03]}  a6 {[%clk 0:01:58]} 21. f4 {[%clk 0:02:03]}  exf4 {[%clk 0:01:56]} 22. Bxf4 {[%clk 0:02:03]}  Ra7 {[%clk 0:01:44]} 23. Nf3 {[%clk 0:01:59]}  Rae7 {[%clk 0:01:43]} 24. Bh2 {[%clk 0:01:54]}  Qc7 {[%clk 0:01:13]} 25. e5 {[%clk 0:01:51]}  dxe5 {[%clk 0:01:07]} 26. d6 {[%clk 0:01:37]}  Qd8 {[%clk 0:01:07]} 27. Nxe5 {[%clk 0:01:28]}  Rxe5 {[%clk 0:00:32]} 28. Rxe5 {[%clk 0:01:22]}  Bf5 {[%clk 0:00:23]} 29. Rexf5 {[%clk 0:01:14]}  gxf5 {[%clk 0:00:24]} 30. Qxf5+ {[%clk 0:01:13]}  Kh8 {[%clk 0:00:21]} 31. Be5 {[%clk 0:01:10]}  Re6 {[%clk 0:00:15]} 32. Nd5 {[%clk 0:01:02]}  Rxe5 {[%clk 0:00:11]} 33. Qxe5 {[%clk 0:01:00]}  Ne8 {[%clk 0:00:00]} 34. Qe7 {[%clk 0:00:55]} 1-0


[Site "https://www.chess.com"]

[Event "Titled Tuesday Blitz June 27 Late 2023"]
[White "Shapiro, Viktor"]
[Black "Glavina, Pablo"]
[WhiteFideId "4175700"]
[BlackFideId "100234"]
[WhiteElo "2514"]
[BlackElo "2345"]
[Result "0-1"]
[Round "5"]
[TimeControl "180+2"]
[Date "2023.06.27"]
[WhiteClock "0:00:13"]
[BlackClock "0:00:14"]
[Board "127"]

1. Nf3 {[%clk 0:03:00]}  d5 {[%clk 0:02:22]} 2. g3 {[%clk 0:03:00]}  Nd7 {[%clk 0:02:23]} 3. Bg2 {[%clk 0:03:01]}  e5 {[%clk 0:02:23]} 4. d3 {[%clk 0:03:01]}  Ngf6 {[%clk 0:02:24]} 5. O-O {[%clk 0:03:02]}  Bc5 {[%clk 0:02:24]} 6. Bg5 {[%clk 0:03:02]}  O-O {[%clk 0:02:23]} 7. Nbd2 {[%clk 0:03:02]}  h6 {[%clk 0:02:20]} 8. Bxf6 {[%clk 0:03:02]}  Qxf6 {[%clk 0:02:21]} 9. e4 {[%clk 0:03:03]}  c6 {[%clk 0:02:19]} 10. Qe2 {[%clk 0:02:57]}  Re8 {[%clk 0:02:19]} 11. a3 {[%clk 0:02:56]}  a5 {[%clk 0:02:18]} 12. c3 {[%clk 0:02:50]}  b6 {[%clk 0:02:14]} 13. b4 {[%clk 0:02:48]}  Bd6 {[%clk 0:02:15]} 14. b5 {[%clk 0:02:33]}  Bb7 {[%clk 0:02:15]} 15. bxc6 {[%clk 0:02:33]}  Bxc6 {[%clk 0:02:16]} 16. exd5 {[%clk 0:02:25]}  Bxd5 {[%clk 0:02:17]} 17. Ne4 {[%clk 0:02:25]}  Bxe4 {[%clk 0:02:14]} 18. Qxe4 {[%clk 0:02:20]}  Nc5 {[%clk 0:02:14]} 19. Qc4 {[%clk 0:02:19]}  Rac8 {[%clk 0:02:13]} 20. Nd2 {[%clk 0:02:03]}  e4 {[%clk 0:02:06]} 21. d4 {[%clk 0:01:58]}  Nd3 {[%clk 0:01:57]} 22. Qb3 {[%clk 0:01:55]}  e3 {[%clk 0:01:33]} 23. fxe3 {[%clk 0:01:53]}  Qg5 {[%clk 0:01:32]} 24. Qxf7+ {[%clk 0:01:45]}  Kh8 {[%clk 0:01:33]} 25. Ne4 {[%clk 0:01:45]}  Qxe3+ {[%clk 0:01:32]} 26. Kh1 {[%clk 0:01:44]}  Rxe4 {[%clk 0:01:28]} 27. Qd7 {[%clk 0:01:23]}  Ree8 {[%clk 0:00:41]} 28. Qxd6 {[%clk 0:01:04]}  Rxc3 {[%clk 0:00:39]} 29. Rf8+ {[%clk 0:01:01]}  Kh7 {[%clk 0:00:34]} 30. Raf1 {[%clk 0:00:57]}  Rc2 {[%clk 0:00:25]} 31. R8f7 {[%clk 0:00:24]}  Qe2 {[%clk 0:00:19]} 32. Qd5 {[%clk 0:00:16]}  Nf2+ {[%clk 0:00:13]} 33. R7xf2 {[%clk 0:00:15]}  Qxf2 {[%clk 0:00:11]} 34. Rxf2 {[%clk 0:00:16]}  Rxf2 {[%clk 0:00:09]} 35. h4 {[%clk 0:00:16]}  Re1+ {[%clk 0:00:09]} 36. Kh2 {[%clk 0:00:16]}  Ree2 {[%clk 0:00:09]} 37. Kh3 {[%clk 0:00:14]}  Rxg2 {[%clk 0:00:09]} 38. Qf5+ {[%clk 0:00:14]}  Kg8 {[%clk 0:00:08]} 39. Qc8+ {[%clk 0:00:14]}  Kh7 {[%clk 0:00:09]} 40. Qf5+ {[%clk 0:00:14]}  Kg8 {[%clk 0:00:10]} 41. Qd5+ {[%clk 0:00:14]}  Kf8 {[%clk 0:00:10]} 42. Qxg2 {[%clk 0:00:14]}  Rxg2 {[%clk 0:00:10]} 43. Kxg2 {[%clk 0:00:15]}  Ke7 {[%clk 0:00:11]} 44. Kf3 {[%clk 0:00:15]}  Kd6 {[%clk 0:00:12]} 45. Ke4 {[%clk 0:00:16]}  b5 {[%clk 0:00:12]} 46. g4 {[%clk 0:00:16]}  a4 {[%clk 0:00:12]} 47. g5 {[%clk 0:00:15]}  hxg5 {[%clk 0:00:12]} 48. hxg5 {[%clk 0:00:16]}  b4 {[%clk 0:00:13]} 49. axb4 {[%clk 0:00:15]}  a3 {[%clk 0:00:13]} 50. Kd3 {[%clk 0:00:16]}  a2 {[%clk 0:00:13]} 51. Kc2 {[%clk 0:00:13]}  a1=Q {[%clk 0:00:14]} 0-1


[Site "https://www.chess.com"]